{"text_format":"1","workbook":"xlsx","n_sheets":2,"sheets":["Worksheet","SYSTEM FORMULAE"],"not_rendered":{"charts":0,"images":1,"macros":1,"external_links":0,"defined_names":2,"comments":0,"pivot_tables":0},"unopened":[],"bounds":{"document_bytes":16777216,"sheet_cells":100000,"rows_first":2000,"rows_last":500,"rows_between":2000,"halvings":0,"cell_chars":16384,"cell_head_chars":4096},"cells_cut":0,"cells_raw":0,"read":"whole","date_system":"1900"}

{"sheet":"Worksheet","index":0,"n_rows":22,"n_cols":10,"rows_kept":22,"cut":false,"hidden":false,"merged":[[3,0,3,1],[0,2,0,8],[1,0,1,1],[1,3,1,4],[1,5,1,6],[1,7,1,8]]}
[null,null,{"$f":"CONCATENATE(\"Use the correct formula to calculate the \",IF(Worksheet!$B$5=1,\"Force\",IF(Worksheet!$B$5=2,\"Mass\",IF(Worksheet!$B$6=3,\"Acceleration\",\"Force, Mass or Acceleration in each question\"))))","v":"Use the correct formula to calculate the Force, Mass or Acceleration in each question"}]
["Variables",null,null,"Force (Newtons)",null,"Acceleration (m/s²)",null,"Mass (kilograms)"]
["SHOW ANSWERS",false,1,2210,null,26,null,85,null,3]
["Which quantity to find:",null,2,4660,null,20,null,233,null,1]
["Force",4,3,3402,null,18,null,189,null,1]
["Acceleration",null,4,390,null,10,null,39,null,3]
["Mass",null,5,4470,null,15,null,298,null,3]
["A mixture",null,6,361,null,19,null,19,null,1]
["Whole numbers only?",true,7,34,null,1,null,34,null,1]
[null,null,8,70,null,1,null,70,null,3]
[null,null,9,1020,null,10,null,102,null,1]
[null,null,10,9831,null,29,null,339,null,2]
[null,null,11,3690,null,15,null,246,null,2]
[null,null,12,424,null,4,null,106,null,1]
[null,null,13,6094,null,22,null,277,null,1]
[null,null,14,5871,null,19,null,309,null,2]
[null,null,15,1593,null,9,null,177,null,1]
[null,null,16,1305,null,29,null,45,null,2]
[null,null,17,513,null,9,null,57,null,2]
[null,null,18,64,null,2,null,32,null,2]
[null,null,19,3612,null,28,null,129,null,2]
[null,null,20,270,null,3,null,90,null,2]

{"sheet":"SYSTEM FORMULAE","index":1,"n_rows":21,"n_cols":8,"rows_kept":21,"cut":false,"hidden":false,"merged":[[0,3,0,4],[0,1,0,2],[0,5,0,6]]}
[null,"Force (Newtons)",null,"Acceleration (m/s²)",null,"Mass (kilograms)"]
[1,{"$f":"F2*D2","v":2698},null,{"$f":"RANDBETWEEN(1,RANDBETWEEN(10,50))/10^RANDBETWEEN(0,IF(Worksheet!$B$9,0,2))","v":38},null,{"$f":"RANDBETWEEN(10,RANDBETWEEN(50,500))/10^RANDBETWEEN(0,IF(Worksheet!$B$9,0,2))","v":71},null,{"$f":"IF(Worksheet!$B$5=1,1,IF(Worksheet!$B$5=2,2,IF(Worksheet!$B$5=3,3,RANDBETWEEN(1,3))))","v":3}]
[2,256,null,{"$f":"RANDBETWEEN(1,RANDBETWEEN(10,50))/10^RANDBETWEEN(0,IF(Worksheet!$B$9,0,2))","v":16},null,{"$f":"RANDBETWEEN(10,RANDBETWEEN(50,500))/10^RANDBETWEEN(0,IF(Worksheet!$B$9,0,2))","v":16},null,{"$f":"IF(Worksheet!$B$5=1,1,IF(Worksheet!$B$5=2,2,IF(Worksheet!$B$5=3,3,RANDBETWEEN(1,3))))","v":3}]
[3,459,null,{"$f":"RANDBETWEEN(1,RANDBETWEEN(10,50))/10^RANDBETWEEN(0,IF(Worksheet!$B$9,0,2))","v":9},null,{"$f":"RANDBETWEEN(10,RANDBETWEEN(50,500))/10^RANDBETWEEN(0,IF(Worksheet!$B$9,0,2))","v":51},null,{"$f":"IF(Worksheet!$B$5=1,1,IF(Worksheet!$B$5=2,2,IF(Worksheet!$B$5=3,3,RANDBETWEEN(1,3))))","v":3}]
[4,400,null,{"$f":"RANDBETWEEN(1,RANDBETWEEN(10,50))/10^RANDBETWEEN(0,IF(Worksheet!$B$9,0,2))","v":25},null,{"$f":"RANDBETWEEN(10,RANDBETWEEN(50,500))/10^RANDBETWEEN(0,IF(Worksheet!$B$9,0,2))","v":16},null,{"$f":"IF(Worksheet!$B$5=1,1,IF(Worksheet!$B$5=2,2,IF(Worksheet!$B$5=3,3,RANDBETWEEN(1,3))))","v":3}]
[5,1995,null,{"$f":"RANDBETWEEN(1,RANDBETWEEN(10,50))/10^RANDBETWEEN(0,IF(Worksheet!$B$9,0,2))","v":7},null,{"$f":"RANDBETWEEN(10,RANDBETWEEN(50,500))/10^RANDBETWEEN(0,IF(Worksheet!$B$9,0,2))","v":285},null,{"$f":"IF(Worksheet!$B$5=1,1,IF(Worksheet!$B$5=2,2,IF(Worksheet!$B$5=3,3,RANDBETWEEN(1,3))))","v":1}]
[6,464,null,{"$f":"RANDBETWEEN(1,RANDBETWEEN(10,50))/10^RANDBETWEEN(0,IF(Worksheet!$B$9,0,2))","v":29},null,{"$f":"RANDBETWEEN(10,RANDBETWEEN(50,500))/10^RANDBETWEEN(0,IF(Worksheet!$B$9,0,2))","v":16},null,{"$f":"IF(Worksheet!$B$5=1,1,IF(Worksheet!$B$5=2,2,IF(Worksheet!$B$5=3,3,RANDBETWEEN(1,3))))","v":3}]
[7,1624,null,{"$f":"RANDBETWEEN(1,RANDBETWEEN(10,50))/10^RANDBETWEEN(0,IF(Worksheet!$B$9,0,2))","v":28},null,{"$f":"RANDBETWEEN(10,RANDBETWEEN(50,500))/10^RANDBETWEEN(0,IF(Worksheet!$B$9,0,2))","v":58},null,{"$f":"IF(Worksheet!$B$5=1,1,IF(Worksheet!$B$5=2,2,IF(Worksheet!$B$5=3,3,RANDBETWEEN(1,3))))","v":3}]
[8,1480,null,{"$f":"RANDBETWEEN(1,RANDBETWEEN(10,50))/10^RANDBETWEEN(0,IF(Worksheet!$B$9,0,2))","v":20},null,{"$f":"RANDBETWEEN(10,RANDBETWEEN(50,500))/10^RANDBETWEEN(0,IF(Worksheet!$B$9,0,2))","v":74},null,{"$f":"IF(Worksheet!$B$5=1,1,IF(Worksheet!$B$5=2,2,IF(Worksheet!$B$5=3,3,RANDBETWEEN(1,3))))","v":1}]
[9,882,null,{"$f":"RANDBETWEEN(1,RANDBETWEEN(10,50))/10^RANDBETWEEN(0,IF(Worksheet!$B$9,0,2))","v":9},null,{"$f":"RANDBETWEEN(10,RANDBETWEEN(50,500))/10^RANDBETWEEN(0,IF(Worksheet!$B$9,0,2))","v":98},null,{"$f":"IF(Worksheet!$B$5=1,1,IF(Worksheet!$B$5=2,2,IF(Worksheet!$B$5=3,3,RANDBETWEEN(1,3))))","v":1}]
[10,2015,null,{"$f":"RANDBETWEEN(1,RANDBETWEEN(10,50))/10^RANDBETWEEN(0,IF(Worksheet!$B$9,0,2))","v":13},null,{"$f":"RANDBETWEEN(10,RANDBETWEEN(50,500))/10^RANDBETWEEN(0,IF(Worksheet!$B$9,0,2))","v":155},null,{"$f":"IF(Worksheet!$B$5=1,1,IF(Worksheet!$B$5=2,2,IF(Worksheet!$B$5=3,3,RANDBETWEEN(1,3))))","v":1}]
[11,296,null,{"$f":"RANDBETWEEN(1,RANDBETWEEN(10,50))/10^RANDBETWEEN(0,IF(Worksheet!$B$9,0,2))","v":8},null,{"$f":"RANDBETWEEN(10,RANDBETWEEN(50,500))/10^RANDBETWEEN(0,IF(Worksheet!$B$9,0,2))","v":37},null,{"$f":"IF(Worksheet!$B$5=1,1,IF(Worksheet!$B$5=2,2,IF(Worksheet!$B$5=3,3,RANDBETWEEN(1,3))))","v":3}]
[12,1365,null,{"$f":"RANDBETWEEN(1,RANDBETWEEN(10,50))/10^RANDBETWEEN(0,IF(Worksheet!$B$9,0,2))","v":15},null,{"$f":"RANDBETWEEN(10,RANDBETWEEN(50,500))/10^RANDBETWEEN(0,IF(Worksheet!$B$9,0,2))","v":91},null,{"$f":"IF(Worksheet!$B$5=1,1,IF(Worksheet!$B$5=2,2,IF(Worksheet!$B$5=3,3,RANDBETWEEN(1,3))))","v":2}]
[13,3999,null,{"$f":"RANDBETWEEN(1,RANDBETWEEN(10,50))/10^RANDBETWEEN(0,IF(Worksheet!$B$9,0,2))","v":31},null,{"$f":"RANDBETWEEN(10,RANDBETWEEN(50,500))/10^RANDBETWEEN(0,IF(Worksheet!$B$9,0,2))","v":129},null,{"$f":"IF(Worksheet!$B$5=1,1,IF(Worksheet!$B$5=2,2,IF(Worksheet!$B$5=3,3,RANDBETWEEN(1,3))))","v":2}]
[14,10324,null,{"$f":"RANDBETWEEN(1,RANDBETWEEN(10,50))/10^RANDBETWEEN(0,IF(Worksheet!$B$9,0,2))","v":29},null,{"$f":"RANDBETWEEN(10,RANDBETWEEN(50,500))/10^RANDBETWEEN(0,IF(Worksheet!$B$9,0,2))","v":356},null,{"$f":"IF(Worksheet!$B$5=1,1,IF(Worksheet!$B$5=2,2,IF(Worksheet!$B$5=3,3,RANDBETWEEN(1,3))))","v":2}]
[15,1798,null,{"$f":"RANDBETWEEN(1,RANDBETWEEN(10,50))/10^RANDBETWEEN(0,IF(Worksheet!$B$9,0,2))","v":31},null,{"$f":"RANDBETWEEN(10,RANDBETWEEN(50,500))/10^RANDBETWEEN(0,IF(Worksheet!$B$9,0,2))","v":58},null,{"$f":"IF(Worksheet!$B$5=1,1,IF(Worksheet!$B$5=2,2,IF(Worksheet!$B$5=3,3,RANDBETWEEN(1,3))))","v":2}]
[16,684,null,{"$f":"RANDBETWEEN(1,RANDBETWEEN(10,50))/10^RANDBETWEEN(0,IF(Worksheet!$B$9,0,2))","v":6},null,{"$f":"RANDBETWEEN(10,RANDBETWEEN(50,500))/10^RANDBETWEEN(0,IF(Worksheet!$B$9,0,2))","v":114},null,{"$f":"IF(Worksheet!$B$5=1,1,IF(Worksheet!$B$5=2,2,IF(Worksheet!$B$5=3,3,RANDBETWEEN(1,3))))","v":2}]
[17,1188,null,{"$f":"RANDBETWEEN(1,RANDBETWEEN(10,50))/10^RANDBETWEEN(0,IF(Worksheet!$B$9,0,2))","v":33},null,{"$f":"RANDBETWEEN(10,RANDBETWEEN(50,500))/10^RANDBETWEEN(0,IF(Worksheet!$B$9,0,2))","v":36},null,{"$f":"IF(Worksheet!$B$5=1,1,IF(Worksheet!$B$5=2,2,IF(Worksheet!$B$5=3,3,RANDBETWEEN(1,3))))","v":1}]
[18,6688,null,{"$f":"RANDBETWEEN(1,RANDBETWEEN(10,50))/10^RANDBETWEEN(0,IF(Worksheet!$B$9,0,2))","v":44},null,{"$f":"RANDBETWEEN(10,RANDBETWEEN(50,500))/10^RANDBETWEEN(0,IF(Worksheet!$B$9,0,2))","v":152},null,{"$f":"IF(Worksheet!$B$5=1,1,IF(Worksheet!$B$5=2,2,IF(Worksheet!$B$5=3,3,RANDBETWEEN(1,3))))","v":1}]
[19,404,null,{"$f":"RANDBETWEEN(1,RANDBETWEEN(10,50))/10^RANDBETWEEN(0,IF(Worksheet!$B$9,0,2))","v":4},null,{"$f":"RANDBETWEEN(10,RANDBETWEEN(50,500))/10^RANDBETWEEN(0,IF(Worksheet!$B$9,0,2))","v":101},null,{"$f":"IF(Worksheet!$B$5=1,1,IF(Worksheet!$B$5=2,2,IF(Worksheet!$B$5=3,3,RANDBETWEEN(1,3))))","v":1}]
[20,3048,null,{"$f":"RANDBETWEEN(1,RANDBETWEEN(10,50))/10^RANDBETWEEN(0,IF(Worksheet!$B$9,0,2))","v":12},null,{"$f":"RANDBETWEEN(10,RANDBETWEEN(50,500))/10^RANDBETWEEN(0,IF(Worksheet!$B$9,0,2))","v":254},null,{"$f":"IF(Worksheet!$B$5=1,1,IF(Worksheet!$B$5=2,2,IF(Worksheet!$B$5=3,3,RANDBETWEEN(1,3))))","v":2}]